[Event "Early-Titled-Tuesday-Blitz-March-05-2024"]
[Site "Chess.com"]
[Date "2024.03.05"]
[Round "2"]
[White "el_sporco"]
[Black "Kildepiotr"]
[Result "0-1"]
[WhiteElo "2389"]
[BlackElo "2690"]
[TimeControl "180+1"]
[EndTime "8:17:19 PST"]
[Termination "Kildepiotr won by resignation"]

1. e4 {[%clk 0:02:59]} 1... g6 {[%clk 0:02:59.4]} 2. d4 {[%clk 0:02:58.7]} 2...
Bg7 {[%clk 0:02:59.3]} 3. Nc3 {[%clk 0:02:57.4]} 3... c6 {[%clk 0:02:59.7]} 4.
g3 {[%clk 0:02:51.7]} 4... d5 {[%clk 0:02:58]} 5. exd5 {[%clk 0:02:51.5]} 5...
cxd5 {[%clk 0:02:58.1]} 6. Bg2 {[%clk 0:02:52.3]} 6... Nf6 {[%clk 0:02:57.8]} 7.
Nge2 {[%clk 0:02:51.6]} 7... O-O {[%clk 0:02:57.2]} 8. O-O {[%clk 0:02:52.5]}
8... Nc6 {[%clk 0:02:56.1]} 9. Nf4 {[%clk 0:02:51.7]} 9... e6 {[%clk 0:02:56.2]}
10. Nce2 {[%clk 0:02:50.7]} 10... b6 {[%clk 0:02:55.8]} 11. c4 {[%clk
0:02:47.6]} 11... Ba6 {[%clk 0:02:50.8]} 12. cxd5 {[%clk 0:02:42.7]} 12... Nxd5
{[%clk 0:02:50.4]} 13. Nxd5 {[%clk 0:02:42.1]} 13... exd5 {[%clk 0:02:51.3]} 14.
Be3 {[%clk 0:02:25.7]} 14... Rc8 {[%clk 0:02:46.4]} 15. Re1 {[%clk 0:01:55.2]}
15... Nb4 {[%clk 0:02:44.4]} 16. Nc3 {[%clk 0:01:54.9]} 16... Nd3 {[%clk
0:02:40.3]} 17. Re2 {[%clk 0:01:50]} 17... Nxb2 {[%clk 0:02:38.7]} 18. Rxb2
{[%clk 0:01:43.4]} 18... Rxc3 {[%clk 0:02:38.7]} 19. Qa4 {[%clk 0:01:36.3]}
19... Bc4 {[%clk 0:02:34.4]} 20. Qxa7 {[%clk 0:01:36.1]} 20... b5 {[%clk
0:02:28.9]} 21. a4 {[%clk 0:01:21.6]} 21... Qe8 {[%clk 0:02:22.4]} 22. Bf4
{[%clk 0:01:04.3]} 22... bxa4 {[%clk 0:02:15.4]} 23. Bd6 {[%clk 0:00:59.9]}
23... Rb3 {[%clk 0:02:01.4]} 24. Rd2 {[%clk 0:00:44.3]} 24... Qb5 {[%clk
0:01:56]} 25. Bxf8 {[%clk 0:00:33.1]} 25... Bxf8 {[%clk 0:01:39.9]} 26. h4
{[%clk 0:00:31.9]} 26... a3 {[%clk 0:01:37.3]} 27. Kh2 {[%clk 0:00:23.1]} 27...
Rb2 {[%clk 0:01:33.8]} 28. Rdd1 {[%clk 0:00:17.8]} 28... Rxf2 {[%clk 0:01:32.2]}
29. Rxa3 {[%clk 0:00:18.1]} 29... Bxa3 {[%clk 0:01:31.1]} 30. Qxa3 {[%clk
0:00:19]} 30... Qe8 {[%clk 0:01:19.9]} 31. Rb1 {[%clk 0:00:09.6]} 31... Rxg2+
{[%clk 0:01:13.6]} 32. Kxg2 {[%clk 0:00:10.5]} 32... Qe4+ {[%clk 0:01:13.6]} 33.
Kh3 {[%clk 0:00:08.9]} 33... Qxb1 {[%clk 0:01:12.2]} 0-1

[Event "Early-Titled-Tuesday-Blitz-March-05-2024"]
[Site "Chess.com"]
[Date "2024.03.05"]
[Round "2"]
[White "yonaltimur"]
[Black "YoreDea"]
[Result "1-0"]
[WhiteElo "2362"]
[BlackElo "2542"]
[TimeControl "180+1"]
[EndTime "8:17:22 PST"]
[Termination "yonaltimur won by resignation"]

1. e4 {[%clk 0:03:00.9]} 1... e6 {[%clk 0:02:57.9]} 2. d4 {[%clk 0:03:00.7]}
2... d5 {[%clk 0:02:57.7]} 3. Nc3 {[%clk 0:03:01.1]} 3... Nf6 {[%clk 0:02:50.4]}
4. Bg5 {[%clk 0:03:00.7]} 4... Be7 {[%clk 0:02:35.3]} 5. e5 {[%clk 0:03:00.4]}
5... Ne4 {[%clk 0:02:33.9]} 6. Bxe7 {[%clk 0:02:59.4]} 6... Qxe7 {[%clk
0:02:29.6]} 7. Bd3 {[%clk 0:01:40.1]} 7... Nxc3 {[%clk 0:02:26.6]} 8. bxc3
{[%clk 0:01:41]} 8... c5 {[%clk 0:02:27.2]} 9. Qg4 {[%clk 0:01:40.1]} 9... g6
{[%clk 0:02:24.5]} 10. Nf3 {[%clk 0:01:35.5]} 10... c4 {[%clk 0:02:21.7]} 11.
Be2 {[%clk 0:01:35.4]} 11... h5 {[%clk 0:02:21.7]} 12. Qf4 {[%clk 0:01:35.2]}
12... Bd7 {[%clk 0:02:04.2]} 13. a4 {[%clk 0:01:32.6]} 13... Na6 {[%clk
0:01:55.5]} 14. h4 {[%clk 0:00:50.6]} 14... O-O-O {[%clk 0:01:52.9]} 15. Qf6
{[%clk 0:00:49.9]} 15... Qxf6 {[%clk 0:01:48.8]} 16. exf6 {[%clk 0:00:50.8]}
16... Be8 {[%clk 0:01:47]} 17. Ne5 {[%clk 0:00:50.5]} 17... Rd6 {[%clk
0:01:46.9]} 18. Kd2 {[%clk 0:00:49.7]} 18... Nb8 {[%clk 0:01:44.7]} 19. g4
{[%clk 0:00:47.1]} 19... hxg4 {[%clk 0:01:41.9]} 20. Bxg4 {[%clk 0:00:48]} 20...
Ra6 {[%clk 0:01:41.8]} 21. h5 {[%clk 0:00:25.7]} 21... gxh5 {[%clk 0:01:37.6]}
22. Rxh5 {[%clk 0:00:25.7]} 22... Rf8 {[%clk 0:01:29.4]} 23. a5 {[%clk
0:00:20.3]} 23... Nd7 {[%clk 0:01:28.1]} 24. Nxd7 {[%clk 0:00:19.1]} 24... Bxd7
{[%clk 0:01:26.4]} 25. Rah1 {[%clk 0:00:16.8]} 25... Rxa5 {[%clk 0:01:20.5]} 26.
Rh8 {[%clk 0:00:16.7]} 26... Re8 {[%clk 0:01:20]} 27. R1h7 {[%clk 0:00:14.2]}
27... Kd8 {[%clk 0:01:20.2]} 28. Bh5 {[%clk 0:00:12.6]} 28... Ra1 {[%clk
0:01:09]} 29. Bxf7 {[%clk 0:00:11.9]} 29... Rxh8 {[%clk 0:01:06.5]} 30. Rxh8+
{[%clk 0:00:12.8]} 30... Kc7 {[%clk 0:01:07.3]} 31. Bg6 {[%clk 0:00:13.3]} 31...
Rf1 {[%clk 0:01:04.5]} 32. Ke2 {[%clk 0:00:13.5]} 32... Rg1 {[%clk 0:01:02.5]}
33. f7 {[%clk 0:00:13.6]} 33... Rxg6 {[%clk 0:00:55.3]} 34. f8=Q {[%clk
0:00:14]} 1-0

[Event "Early-Titled-Tuesday-Blitz-March-05-2024"]
[Site "Chess.com"]
[Date "2024.03.05"]
[Round "2"]
[White "trriinu"]
[Black "Sofiia_Hryzlova"]
[Result "0-1"]
[WhiteElo "2243"]
[BlackElo "2496"]
[TimeControl "180+1"]
[EndTime "8:17:26 PST"]
[Termination "Sofiia_Hryzlova won on time"]

1. e4 {[%clk 0:02:56.7]} 1... d6 {[%clk 0:02:51.8]} 2. d4 {[%clk 0:02:56]} 2...
Nf6 {[%clk 0:02:51]} 3. Nc3 {[%clk 0:02:56.9]} 3... Nbd7 {[%clk 0:02:50.7]} 4.
Be3 {[%clk 0:02:51.1]} 4... e5 {[%clk 0:02:48.8]} 5. d5 {[%clk 0:02:50.8]} 5...
g6 {[%clk 0:02:44.2]} 6. Nge2 {[%clk 0:02:44.2]} 6... Bg7 {[%clk 0:02:44.2]} 7.
h3 {[%clk 0:02:44.3]} 7... c6 {[%clk 0:02:43.7]} 8. g4 {[%clk 0:02:36.6]} 8...
Nc5 {[%clk 0:02:42.4]} 9. Bg2 {[%clk 0:02:35.7]} 9... O-O {[%clk 0:02:35.1]} 10.
O-O {[%clk 0:02:30.6]} 10... cxd5 {[%clk 0:02:33.9]} 11. exd5 {[%clk 0:02:27.9]}
11... Bd7 {[%clk 0:02:29.2]} 12. Qd2 {[%clk 0:02:14.3]} 12... b5 {[%clk
0:02:23.6]} 13. a3 {[%clk 0:02:13.6]} 13... a5 {[%clk 0:02:22]} 14. Ng3 {[%clk
0:01:18.8]} 14... b4 {[%clk 0:02:06.9]} 15. Nce2 {[%clk 0:01:14.8]} 15... b3
{[%clk 0:02:02.2]} 16. c3 {[%clk 0:00:12.4]} 16... Rc8 {[%clk 0:01:56.8]} 17. g5
{[%clk 0:00:12.2]} 17... Ne8 {[%clk 0:01:54]} 18. f4 {[%clk 0:00:12.6]} 18... f5
{[%clk 0:01:44.8]} 19. gxf6 {[%clk 0:00:08.6]} 19... Nxf6 {[%clk 0:01:43.9]} 20.
f5 {[%clk 0:00:08.8]} 20... Qe8 {[%clk 0:01:40.9]} 21. fxg6 {[%clk 0:00:08.4]}
21... Qxg6 {[%clk 0:01:40.8]} 22. Bxc5 {[%clk 0:00:07.6]} 22... Rxc5 {[%clk
0:01:40.2]} 23. Qe3 {[%clk 0:00:07.2]} 23... Nxd5 {[%clk 0:01:38]} 24. Bxd5+
{[%clk 0:00:06.8]} 24... Rxd5 {[%clk 0:01:38.2]} 25. Kh2 {[%clk 0:00:07]} 25...
Rd3 {[%clk 0:01:37.6]} 26. Qg1 {[%clk 0:00:06.9]} 26... Rff3 {[%clk 0:01:36.7]}
27. Rxf3 {[%clk 0:00:06.8]} 27... Rxf3 {[%clk 0:01:37.6]} 28. Rf1 {[%clk
0:00:06.9]} 28... e4 {[%clk 0:01:33.6]} 29. Qb6 {[%clk 0:00:02.8]} 29... Qe6
{[%clk 0:01:27.7]} 30. Qd8+ {[%clk 0:00:02.5]} 30... Bf8 {[%clk 0:01:27.8]} 31.
Qh4 {[%clk 0:00:03]} 31... Be7 {[%clk 0:01:23.9]} 32. Qxe4 {[%clk 0:00:02.8]}
32... Qxe4 {[%clk 0:01:20]} 33. Nxe4 {[%clk 0:00:02.6]} 33... Rxh3+ {[%clk
0:01:19.8]} 34. Kg2 {[%clk 0:00:02.6]} 34... Re3 {[%clk 0:01:18.4]} 35. N2g3
{[%clk 0:00:01.7]} 35... d5 {[%clk 0:01:12.7]} 0-1

[Event "Early-Titled-Tuesday-Blitz-March-05-2024"]
[Site "Chess.com"]
[Date "2024.03.05"]
[Round "2"]
[White "littlepinkyboy"]
[Black "Coach_Istvanovszki"]
[Result "0-1"]
[WhiteElo "2679"]
[BlackElo "2442"]
[TimeControl "180+1"]
[EndTime "8:17:27 PST"]
[Termination "Coach_Istvanovszki won by checkmate"]

1. e4 {[%clk 0:03:00.9]} 1... c5 {[%clk 0:03:00.3]} 2. Nf3 {[%clk 0:02:58.8]}
2... d6 {[%clk 0:03:00.6]} 3. d4 {[%clk 0:02:57.9]} 3... cxd4 {[%clk 0:03:01.5]}
4. Nxd4 {[%clk 0:02:58.3]} 4... Nf6 {[%clk 0:03:02.1]} 5. Nc3 {[%clk 0:02:58.9]}
5... g6 {[%clk 0:03:02.8]} 6. Be3 {[%clk 0:02:56.3]} 6... Nc6 {[%clk 0:03:03.3]}
7. f3 {[%clk 0:02:54.4]} 7... h5 {[%clk 0:03:03.4]} 8. Qd2 {[%clk 0:02:54.4]}
8... Nxd4 {[%clk 0:03:03.7]} 9. Bxd4 {[%clk 0:02:54.6]} 9... Bh6 {[%clk
0:03:04.4]} 10. Be3 {[%clk 0:02:54.8]} 10... Bxe3 {[%clk 0:03:04.9]} 11. Qxe3
{[%clk 0:02:55.4]} 11... Be6 {[%clk 0:03:05.6]} 12. O-O-O {[%clk 0:02:55.4]}
12... Qa5 {[%clk 0:03:04.9]} 13. Kb1 {[%clk 0:02:53.6]} 13... Rc8 {[%clk
0:03:04.2]} 14. Bb5+ {[%clk 0:02:51.2]} 14... Kf8 {[%clk 0:03:04.4]} 15. e5
{[%clk 0:02:31.5]} 15... dxe5 {[%clk 0:02:52.6]} 16. Qxe5 {[%clk 0:02:27.6]}
16... a6 {[%clk 0:02:40.6]} 17. a3 {[%clk 0:02:07.5]} 17... axb5 {[%clk
0:02:39.2]} 18. g4 {[%clk 0:02:06.5]} 18... hxg4 {[%clk 0:02:23.3]} 19. fxg4
{[%clk 0:02:07.4]} 19... Rh3 {[%clk 0:02:08.6]} 20. g5 {[%clk 0:01:49.7]} 20...
Ng4 {[%clk 0:02:00.4]} 21. Qd4 {[%clk 0:01:27.5]} 21... Ne3 {[%clk 0:01:50]} 22.
Rd3 {[%clk 0:01:13.9]} 22... Nf5 {[%clk 0:01:48.7]} 23. Qe5 {[%clk 0:01:12.2]}
23... Rh4 {[%clk 0:01:33.7]} 24. Rhd1 {[%clk 0:00:58.2]} 24... Kg8 {[%clk
0:01:24.4]} 25. Ne4 {[%clk 0:00:27.5]} 25... Qc7 {[%clk 0:00:53]} 26. Rd8+
{[%clk 0:00:03.3]} 26... Rxd8 {[%clk 0:00:52.7]} 27. Qxc7 {[%clk 0:00:02.6]}
27... Rxd1# {[%clk 0:00:52.4]} 0-1

[Event "Early-Titled-Tuesday-Blitz-March-05-2024"]
[Site "Chess.com"]
[Date "2024.03.05"]
[Round "2"]
[White "Smoking_Crow"]
[Black "carloseduar100"]
[Result "1-0"]
[WhiteElo "2610"]
[BlackElo "2365"]
[TimeControl "180+1"]
[EndTime "8:17:37 PST"]
[Termination "Smoking_Crow won by checkmate"]

1. d4 {[%clk 0:03:00.9]} 1... d5 {[%clk 0:03:00]} 2. c4 {[%clk 0:02:58.8]} 2...
e5 {[%clk 0:03:00.1]} 3. dxe5 {[%clk 0:02:52.6]} 3... d4 {[%clk 0:03:01]} 4. Nf3
{[%clk 0:02:39.5]} 4... Nc6 {[%clk 0:02:59]} 5. Bg5 {[%clk 0:02:28.3]} 5... Be7
{[%clk 0:02:47.6]} 6. Bxe7 {[%clk 0:02:24.9]} 6... Ngxe7 {[%clk 0:02:48.5]} 7.
g3 {[%clk 0:02:19.2]} 7... Bg4 {[%clk 0:02:48.1]} 8. Bg2 {[%clk 0:02:19]} 8...
Ng6 {[%clk 0:02:48.4]} 9. O-O {[%clk 0:02:17.3]} 9... Qd7 {[%clk 0:02:48.8]} 10.
Nbd2 {[%clk 0:02:12.9]} 10... h5 {[%clk 0:02:48.9]} 11. Ne4 {[%clk 0:01:58.7]}
11... h4 {[%clk 0:02:36]} 12. Nc5 {[%clk 0:01:58]} 12... Qc8 {[%clk 0:02:35.1]}
13. Nxd4 {[%clk 0:01:55.1]} 13... hxg3 {[%clk 0:02:35.1]} 14. Nxc6 {[%clk
0:01:47.3]} 14... Rxh2 {[%clk 0:02:26.5]} 15. e6 {[%clk 0:01:30.4]} 15... Nf4
{[%clk 0:01:40.9]} 16. Qd7+ {[%clk 0:00:19]} 16... Qxd7 {[%clk 0:01:40]} 17.
exd7+ {[%clk 0:00:19.5]} 17... Bxd7 {[%clk 0:01:40.9]} 18. fxg3 {[%clk
0:00:10.5]} 18... Rxg2+ {[%clk 0:01:39.9]} 19. Kh1 {[%clk 0:00:10.6]} 19... Bxc6
{[%clk 0:01:40.5]} 20. e4 {[%clk 0:00:09.4]} 20... O-O-O {[%clk 0:01:17]} 21.
Rxf4 {[%clk 0:00:07.9]} 21... Rxg3 {[%clk 0:01:17]} 22. Rh4 {[%clk 0:00:07.5]}
22... Rd2 {[%clk 0:01:15.1]} 23. Rf1 {[%clk 0:00:06.6]} 23... Kd8 {[%clk
0:00:58]} 24. Rxf7 {[%clk 0:00:05.7]} 24... Re3 {[%clk 0:00:50.8]} 25. Rh8+
{[%clk 0:00:05.7]} 25... Be8 {[%clk 0:00:51.1]} 26. Ne6+ {[%clk 0:00:05.5]}
26... Kc8 {[%clk 0:00:46.8]} 27. Rxe8+ {[%clk 0:00:05.9]} 27... Rd8 {[%clk
0:00:46.7]} 28. Rxd8# {[%clk 0:00:06.8]} 1-0

[Event "Early-Titled-Tuesday-Blitz-March-05-2024"]
[Site "Chess.com"]
[Date "2024.03.05"]
[Round "2"]
[White "subham777"]
[Black "ChessQueen"]
[Result "0-1"]
[WhiteElo "2533"]
[BlackElo "2778"]
[TimeControl "180+1"]
[EndTime "8:17:38 PST"]
[Termination "ChessQueen won by checkmate"]

1. e4 {[%clk 0:03:00.9]} 1... c6 {[%clk 0:03:00.1]} 2. c4 {[%clk 0:03:00.7]}
2... d5 {[%clk 0:02:59.9]} 3. cxd5 {[%clk 0:03:01.3]} 3... cxd5 {[%clk
0:03:00.8]} 4. exd5 {[%clk 0:03:01.8]} 4... Nf6 {[%clk 0:03:01]} 5. Nf3 {[%clk
0:03:01.8]} 5... Nxd5 {[%clk 0:02:57.6]} 6. Nc3 {[%clk 0:03:01.8]} 6... Nxc3
{[%clk 0:02:56.6]} 7. bxc3 {[%clk 0:03:02.7]} 7... g6 {[%clk 0:02:56.7]} 8. d4
{[%clk 0:03:03.2]} 8... Bg7 {[%clk 0:02:56.7]} 9. Bc4 {[%clk 0:03:02.3]} 9...
O-O {[%clk 0:02:56]} 10. O-O {[%clk 0:03:02.6]} 10... Nc6 {[%clk 0:02:50.8]} 11.
Re1 {[%clk 0:02:55.5]} 11... Na5 {[%clk 0:02:44.2]} 12. Bd3 {[%clk 0:02:53]}
12... Be6 {[%clk 0:02:42.5]} 13. Ba3 {[%clk 0:02:47]} 13... Re8 {[%clk
0:02:40.6]} 14. Bb4 {[%clk 0:02:42.6]} 14... Nc6 {[%clk 0:02:38.7]} 15. Ba3
{[%clk 0:02:35.6]} 15... Qa5 {[%clk 0:02:36.2]} 16. Bb2 {[%clk 0:02:34.3]} 16...
Rad8 {[%clk 0:02:32.9]} 17. Rxe6 {[%clk 0:02:01]} 17... fxe6 {[%clk 0:02:32.4]}
18. Qb3 {[%clk 0:02:01]} 18... Kh8 {[%clk 0:02:16.9]} 19. h4 {[%clk 0:01:51.8]}
19... Qd5 {[%clk 0:01:42.6]} 20. Bc4 {[%clk 0:01:38]} 20... Qh5 {[%clk
0:01:35.2]} 21. Ng5 {[%clk 0:01:16]} 21... Bf6 {[%clk 0:01:35.5]} 22. Nf7+
{[%clk 0:01:11.3]} 22... Kg7 {[%clk 0:01:35.6]} 23. Nxd8 {[%clk 0:01:10.5]}
23... Rxd8 {[%clk 0:01:36.5]} 24. Bxe6 {[%clk 0:01:01.3]} 24... Bxh4 {[%clk
0:01:34.3]} 25. Qxb7 {[%clk 0:00:57.2]} 25... Bxf2+ {[%clk 0:01:16.2]} 26. Kxf2
{[%clk 0:00:42.5]} 26... Qh2 {[%clk 0:01:12.4]} 27. Bg4 {[%clk 0:00:23.7]} 27...
Rb8 {[%clk 0:01:12]} 28. Qxc6 {[%clk 0:00:21.1]} 28... Rxb2+ {[%clk 0:01:12.2]}
29. Ke3 {[%clk 0:00:12.6]} 29... Rxg2 {[%clk 0:01:04.5]} 30. Bf3 {[%clk
0:00:09.1]} 30... Rb2 {[%clk 0:00:56.6]} 31. Qe4 {[%clk 0:00:01.4]} 31... Qd2#
{[%clk 0:00:41.7]} 0-1

[Event "Early-Titled-Tuesday-Blitz-March-05-2024"]
[Site "Chess.com"]
[Date "2024.03.05"]
[Round "2"]
[White "Szachulec75"]
[Black "LionelMessiFCB"]
[Result "0-1"]
[WhiteElo "2209"]
[BlackElo "2477"]
[TimeControl "180+1"]
[EndTime "8:17:41 PST"]
[Termination "LionelMessiFCB won on time"]

1. Nf3 {[%clk 0:03:00.9]} 1... g6 {[%clk 0:02:59.1]} 2. g3 {[%clk 0:02:53.1]}
2... Bg7 {[%clk 0:02:58.6]} 3. Bg2 {[%clk 0:02:52.9]} 3... e5 {[%clk 0:02:58.5]}
4. d3 {[%clk 0:02:53.5]} 4... d5 {[%clk 0:02:57.3]} 5. O-O {[%clk 0:02:53.6]}
5... Ne7 {[%clk 0:02:56.8]} 6. Nbd2 {[%clk 0:02:53.4]} 6... O-O {[%clk
0:02:56.8]} 7. e4 {[%clk 0:02:53.6]} 7... c6 {[%clk 0:02:55.7]} 8. Re1 {[%clk
0:02:53.2]} 8... Nd7 {[%clk 0:02:52.4]} 9. b3 {[%clk 0:02:50.6]} 9... d4 {[%clk
0:02:40.1]} 10. a4 {[%clk 0:02:50.5]} 10... b5 {[%clk 0:02:39.2]} 11. Ba3 {[%clk
0:02:43.6]} 11... a5 {[%clk 0:02:37]} 12. h3 {[%clk 0:02:35.9]} 12... b4 {[%clk
0:02:32.2]} 13. Bc1 {[%clk 0:02:34.6]} 13... Nb6 {[%clk 0:02:32.3]} 14. Nc4
{[%clk 0:02:26.4]} 14... Nxc4 {[%clk 0:02:32]} 15. dxc4 {[%clk 0:02:26.4]} 15...
Kh8 {[%clk 0:02:30.4]} 16. Rf1 {[%clk 0:02:25.8]} 16... Bb7 {[%clk 0:02:28.5]}
17. Ne1 {[%clk 0:02:26]} 17... f5 {[%clk 0:02:24.4]} 18. exf5 {[%clk 0:02:24.6]}
18... gxf5 {[%clk 0:02:25.3]} 19. Nd3 {[%clk 0:02:22.8]} 19... Qd6 {[%clk
0:02:24]} 20. Qh5 {[%clk 0:02:17.9]} 20... Ng6 {[%clk 0:02:23.1]} 21. Bd2 {[%clk
0:02:13]} 21... e4 {[%clk 0:02:22.8]} 22. Nf4 {[%clk 0:02:10.3]} 22... Rae8
{[%clk 0:02:16.7]} 23. c5 {[%clk 0:01:57.9]} 23... Nxf4 {[%clk 0:02:12.6]} 24.
cxd6 {[%clk 0:01:35.2]} 24... Nxh5 {[%clk 0:02:11.7]} 25. Rae1 {[%clk
0:01:30.9]} 25... Nf6 {[%clk 0:02:08.5]} 26. g4 {[%clk 0:01:26.7]} 26... c5
{[%clk 0:02:07.6]} 27. gxf5 {[%clk 0:01:26.1]} 27... Re5 {[%clk 0:02:06.4]} 28.
Bg5 {[%clk 0:01:14.1]} 28... Rg8 {[%clk 0:02:02.4]} 29. f4 {[%clk 0:01:09.3]}
29... Rxf5 {[%clk 0:02:00.7]} 30. Kh2 {[%clk 0:01:02.3]} 30... Re8 {[%clk
0:01:54.4]} 31. h4 {[%clk 0:00:37.5]} 31... Ng4+ {[%clk 0:01:52.3]} 32. Kg3
{[%clk 0:00:36.5]} 32... Nf6 {[%clk 0:01:32.9]} 33. Bh3 {[%clk 0:00:32.4]} 33...
Rd5 {[%clk 0:01:32.1]} 34. Bxf6 {[%clk 0:00:29.8]} 34... Bxf6 {[%clk 0:01:31.4]}
35. d7 {[%clk 0:00:30.4]} 35... Rg8+ {[%clk 0:01:30.5]} 36. Kh2 {[%clk
0:00:29.7]} 36... e3 {[%clk 0:01:25.9]} 37. Be6 {[%clk 0:00:29.1]} 37... Rd6
{[%clk 0:01:20.4]} 38. Bxg8 {[%clk 0:00:28.6]} 38... Kxg8 {[%clk 0:01:21.3]} 39.
Kg3 {[%clk 0:00:11.7]} 39... Rxd7 {[%clk 0:01:20.3]} 40. f5 {[%clk 0:00:11.9]}
40... Rg7+ {[%clk 0:01:19.5]} 41. Kf4 {[%clk 0:00:11.9]} 41... Bxh4 {[%clk
0:01:18.8]} 0-1

[Event "Early-Titled-Tuesday-Blitz-March-05-2024"]
[Site "Chess.com"]
[Date "2024.03.05"]
[Round "2"]
[White "Let_it_be_1"]
[Black "Christ_is_alive"]
[Result "0-1"]
[WhiteElo "2571"]
[BlackElo "2367"]
[TimeControl "180+1"]
[EndTime "8:17:42 PST"]
[Termination "Christ_is_alive won by checkmate"]

1. e4 {[%clk 0:03:00.9]} 1... c5 {[%clk 0:02:59.4]} 2. Nf3 {[%clk 0:03:00.8]}
2... Nc6 {[%clk 0:02:59.3]} 3. d4 {[%clk 0:03:01.1]} 3... cxd4 {[%clk
0:03:00.2]} 4. Nxd4 {[%clk 0:03:01.3]} 4... Nf6 {[%clk 0:03:00.9]} 5. Nc3 {[%clk
0:03:01.1]} 5... d6 {[%clk 0:03:01.6]} 6. Be2 {[%clk 0:03:00.9]} 6... e5 {[%clk
0:03:01.4]} 7. Nb3 {[%clk 0:03:00.5]} 7... Be7 {[%clk 0:03:01.3]} 8. O-O {[%clk
0:03:00.7]} 8... O-O {[%clk 0:03:01.5]} 9. f4 {[%clk 0:03:00.7]} 9... a5 {[%clk
0:03:01.6]} 10. a4 {[%clk 0:03:00.4]} 10... Nb4 {[%clk 0:03:01.1]} 11. Kh1
{[%clk 0:03:00.2]} 11... exf4 {[%clk 0:02:38.4]} 12. Bxf4 {[%clk 0:02:59.7]}
12... d5 {[%clk 0:02:36]} 13. e5 {[%clk 0:02:55.7]} 13... Ne4 {[%clk 0:02:34.4]}
14. Nd4 {[%clk 0:02:40.3]} 14... Bc5 {[%clk 0:02:21.9]} 15. Ncb5 {[%clk
0:02:11.9]} 15... Qh4 {[%clk 0:02:10.5]} 16. g3 {[%clk 0:01:58.2]} 16... Qe7
{[%clk 0:01:58]} 17. c3 {[%clk 0:01:52.9]} 17... Nc6 {[%clk 0:01:48.2]} 18. Nxc6
{[%clk 0:01:38.3]} 18... bxc6 {[%clk 0:01:49.1]} 19. Nd4 {[%clk 0:01:36.9]}
19... Bh3 {[%clk 0:01:40.5]} 20. Nxc6 {[%clk 0:01:23.5]} 20... Qb7 {[%clk
0:01:22.3]} 21. Bb5 {[%clk 0:01:13.6]} 21... Bxf1 {[%clk 0:00:59]} 22. Qxf1
{[%clk 0:01:12.4]} 22... Rac8 {[%clk 0:00:45.5]} 23. Nd4 {[%clk 0:01:12]} 23...
Bxd4 {[%clk 0:00:45.7]} 24. cxd4 {[%clk 0:01:11.9]} 24... Rc2 {[%clk 0:00:46.2]}
25. Rc1 {[%clk 0:01:05.8]} 25... Rfc8 {[%clk 0:00:40.3]} 26. Rxc2 {[%clk
0:00:53.2]} 26... Rxc2 {[%clk 0:00:41.2]} 27. b3 {[%clk 0:00:50.5]} 27... Qc8
{[%clk 0:00:39.4]} 28. Bd3 {[%clk 0:00:43.3]} 28... Rb2 {[%clk 0:00:34.3]} 29.
Bxe4 {[%clk 0:00:41]} 29... dxe4 {[%clk 0:00:35]} 30. Qc4 {[%clk 0:00:41.2]}
30... Qh3 {[%clk 0:00:18.6]} 31. d5 {[%clk 0:00:29.1]} 31... Qg2# {[%clk
0:00:14.9]} 0-1

[Event "Early-Titled-Tuesday-Blitz-March-05-2024"]
[Site "Chess.com"]
[Date "2024.03.05"]
[Round "2"]
[White "RCone"]
[Black "goodnigth"]
[Result "1-0"]
[WhiteElo "2436"]
[BlackElo "1966"]
[TimeControl "180+1"]
[EndTime "8:17:43 PST"]
[Termination "RCone won on time"]

1. e4 {[%clk 0:03:00.9]} 1... c5 {[%clk 0:02:58.7]} 2. Nf3 {[%clk 0:03:00.9]}
2... d6 {[%clk 0:02:59.2]} 3. d4 {[%clk 0:03:00.9]} 3... cxd4 {[%clk 0:03:00.1]}
4. Nxd4 {[%clk 0:03:01.3]} 4... Nf6 {[%clk 0:03:00.7]} 5. Nc3 {[%clk 0:03:01.8]}
5... g6 {[%clk 0:03:00.3]} 6. f3 {[%clk 0:02:57.7]} 6... Bg7 {[%clk 0:02:42.4]}
7. Be3 {[%clk 0:02:57.5]} 7... O-O {[%clk 0:02:39.9]} 8. Qd2 {[%clk 0:02:53.5]}
8... Nc6 {[%clk 0:02:38.8]} 9. O-O-O {[%clk 0:02:52.7]} 9... d5 {[%clk
0:02:34.6]} 10. Nxc6 {[%clk 0:02:42]} 10... bxc6 {[%clk 0:02:32.9]} 11. e5
{[%clk 0:02:42.9]} 11... Nd7 {[%clk 0:02:26.5]} 12. Bh6 {[%clk 0:02:40.3]} 12...
Nxe5 {[%clk 0:01:17]} 13. Bxg7 {[%clk 0:02:38.1]} 13... Kxg7 {[%clk 0:01:17.9]}
14. h4 {[%clk 0:02:18.9]} 14... f6 {[%clk 0:00:51.5]} 15. h5 {[%clk 0:02:12.5]}
15... Nf7 {[%clk 0:00:51.3]} 16. hxg6 {[%clk 0:01:52.6]} 16... hxg6 {[%clk
0:00:52.2]} 17. g4 {[%clk 0:01:52.5]} 17... Rh8 {[%clk 0:00:41.2]} 18. Bd3
{[%clk 0:01:51.7]} 18... Bd7 {[%clk 0:00:29]} 19. Rxh8 {[%clk 0:01:44.6]} 19...
Qxh8 {[%clk 0:00:28.8]} 20. Qg2 {[%clk 0:01:40.3]} 20... Qh6+ {[%clk 0:00:27.4]}
21. Kb1 {[%clk 0:01:40.7]} 21... Rh8 {[%clk 0:00:26.8]} 22. Qe2 {[%clk
0:01:40.5]} 22... e5 {[%clk 0:00:25.5]} 23. Na4 {[%clk 0:01:37.1]} 23... Qh2
{[%clk 0:00:16.9]} 24. Qe1 {[%clk 0:01:37.2]} 24... Ng5 {[%clk 0:00:10.9]} 25.
Nc5 {[%clk 0:01:36.2]} 25... Bc8 {[%clk 0:00:11]} 26. Qa5 {[%clk 0:01:34]} 26...
e4 {[%clk 0:00:08.2]} 27. fxe4 {[%clk 0:01:32.6]} 27... Bxg4 {[%clk 0:00:07.6]}
28. Qxa7+ {[%clk 0:01:31.6]} 28... Nf7 {[%clk 0:00:07.6]} 29. Rc1 {[%clk
0:01:23.1]} 29... Qb8 {[%clk 0:00:06.6]} 30. Qa6 {[%clk 0:01:16]} 30... dxe4
{[%clk 0:00:04.8]} 31. Bxe4 {[%clk 0:01:15.3]} 31... Qb5 {[%clk 0:00:04]} 32.
Qa3 {[%clk 0:00:47.6]} 32... Rb8 {[%clk 0:00:02.7]} 33. Nb3 {[%clk 0:00:47]}
33... f5 {[%clk 0:00:02.3]} 34. Bd3 {[%clk 0:00:46.8]} 1-0